Cogmind - Beta 13 @@@ ROGUE MODE // 2024.04.11 @ 19:17:46 Player: Copyrite Result: Self-destructed Performance ------------- Evolutions (2) 1000 Regions Visited (5) 1000 Robots Destroyed (46) 230 Value Destroyed (864) 864 Prototype IDs (3) 60 Alien Tech Used (0) 0 Bonus (348) 348 TOTAL SCORE: 3502 Bonus ------- Follower Combat Kills 92 Aligned with FarCom 300 Friendly Fire -44 Cogmind --------- Core Integrity 328/550 Matter 18/300 Energy 100/100 System Corruption 0% Temperature Cool (0) Movement Core (2350) Ox46 Location -8/Materials Parts ------- > --- POWER (1) -------- (None) > --- PROPULSION (4) --- (None) > --- UTILITY (4) ------ Cargo Storage Unit Advanced Targeting Computer Utility Shielding > --- WEAPON (2) ------- (None) > --- INVENTORY (30) --- Ion Engine Light Nuclear Core Structural Scanner Improved Sensor Array Targeting Computer Targeting Computer Targeting Computer Reaction Control System Cloak of Protection Propulsion Shielding Weapon Shielding Field Recycling Unit (0) Heavy Assault Rifle Heavy Assault Rifle Heavy Assault Rifle Heavy Assault Rifle Light Cannon Grenade Launcher Grenade Launcher Datajack Hammer Peak State ------------ > --- POWER ------------ Reinforced Ion Engine > --- PROPULSION ------- Wheel Compact Wheel Compact Wheel Compact Wheel > --- UTILITY ---------- Cargo Storage Unit Advanced Targeting Computer Medium Armor Plating > --- WEAPON ----------- Assault Cannon Assault Cannon > --- INVENTORY -------- Ion Engine Light Nuclear Core Wheel Structural Scanner Targeting Computer Targeting Computer Targeting Computer Cloak of Protection Propulsion Shielding Utility Shielding Weapon Shielding Light Armor Plating Field Recycling Unit Heavy Assault Rifle Heavy Assault Rifle Heavy Assault Rifle Heavy Assault Rifle Heavy Assault Rifle Shotgun Light Cannon Grenade Launcher Grenade Launcher Datajack Hammer [Rating: 23] Favorites ----------- Power Ion Engine Engine Ion Engine Power Core Light Nuclear Core Propulsion Compact Wheel Treads Light Treads Wheel Compact Wheel Utility Cargo Storage Unit Device Improved Heat Sink Storage Cargo Storage Unit Processor Advanced Targeting Computer Protection Medium Armor Plating Weapon Light Cannon Energy Gun Small Laser Energy Cannon Guided Plasma Cannon Ballistic Gun Heavy Assault Rifle Ballistic Cannon Light Cannon Launcher Grenade Launcher Impact Weapon Hammer Build | -11 -10 -10 -10 -9 -8 ------- Run | Yrd Mat Min Exi Min Mat Slots Evolved 4 | . . . . . 4 Power . | . . . . . . Propulsion 2 | . . . . . 2 Utility 2 | . . . . . 2 Weapon . | . . . . . . Parts Attached 49 | 6 5 11 4 9 14 Power 4 | 1 . 2 . . 1 Engine 3 | 1 . 1 . . 1 Core 1 | . . 1 . . . Reactor . | . . . . . . Propulsion 11 | 2 . 5 . 1 3 Treads 2 | 2 . . . . . Leg . | . . . . . . Wheel 9 | . . 5 . 1 3 Hover . | . . . . . . Flight . | . . . . . . Utility 10 | 1 1 1 2 . 5 Device 2 | . 1 . 1 . . Storage 3 | 1 . 1 1 . . Processor 2 | . . . . . 2 Hackware . | . . . . . . Protection 3 | . . . . . 3 Artifact . | . . . . . . Weapon 24 | 2 4 3 2 8 5 Energy Gun 3 | 2 1 . . . . Energy Cannon 2 | . . . 2 . . Ballistic Gun 6 | . . . . 4 2 Ballistic Cannon 5 | . . 2 . 1 2 Launcher 5 | . 1 1 . 3 . Special Weapon . | . . . . . . Impact Weapon 3 | . 2 . . . 1 Slashing Weapon . | . . . . . . Piercing Weapon . | . . . . . . Special Melee Weapon . | . . . . . . Unidentified Prototypes 3 | . . . 3 . . Parts Lost 10 | . . . . . 10 Power 1 | . . . . . 1 Propulsion 5 | . . . . . 5 Utility 2 | . . . . . 2 Weapon 2 | . . . . . 2 Highest Loss Streak 6 | . . . . . 6 To Critical Strikes . | . . . . . . Average Slot Usage (%) 84 | . 93 85 72 77 78 Engine 9 | . 14 12 . . 8 Core 4 | . . 1 14 14 . Treads 10 | . 28 6 . . . Wheel 17 | . . 21 28 28 26 Device 2 | . 7 . . . . Storage 13 | . 14 14 13 14 9 Energy Gun 6 | . 24 . . . . Ballistic Gun 2 | . . . . 9 7 Ballistic Cannon 13 | . . 26 15 3 8 Launcher 1 | . 1 1 . 7 . Naked Turns . | . . . . . . Heaviest Build 167 | 12 15 151 151 151 167 Greatest Support 58 | 40 40 40 32 32 58 Greatest Overweight (x) 51 | . . 15 4 4 51 Average Overweight (x) 3 | . . 5 3 4 3 Largest Inventory Capacity 30 | 8 8 30 30 30 30 Average Capacity 22 | 7 8 26 28 30 30 Most Carried 24 | 4 8 8 10 22 24 Average Carried 8 | 2 7 5 7 16 21 Final Capacity 30 | 8 8 30 30 30 30 Final Carried 21 | 4 8 7 10 21 21 Class Distribution -------------------- 65% | Hauler-Mutant 34% | Mutant Dominant Class ---------------- Mutant | -10/Materials Hauler-Mutant | -10/Mines Hauler-Mutant | -10/Exiles Hauler-Mutant | -9/Mines Hauler-Mutant | -8/Materials Resources | -11 -10 -10 -10 -9 -8 ----------- Run | Yrd Mat Min Exi Min Mat Matter Collected 996 | 260 55 394 . 204 83 Remotely . | . . . . . . Salvage Created 1312 | . 284 618 . 251 159 Parts 87 | . 27 29 . 17 14 Haulers Intercepted . | . . . . . . Recyclers Shooed 2 | . . 1 . 1 . Parts Field Recycled . | . . . . . . Retrieved Matter . | . . . . . . Parts Self-Destructed . | . . . . . . Prevented . | . . . . . . Kills | -11 -10 -10 -10 -9 -8 ------- Run | Yrd Mat Min Exi Min Mat Combat Hostiles Destroyed 27 | . 10 6 . 4 7 Guns 11 | . 10 . . 1 . Cannons 11 | . . 3 . 1 7 AOE 5 | . . 3 . 2 . Classes Destroyed 10 | . 5 2 . 2 1 Worker 7 | . 1 5 . 1 . Builder 2 | . . 1 . 1 . Tunneler 1 | . . . . 1 . Recycler 5 | . . 4 . 1 . Operator 2 | . 1 . . . 1 Watcher 2 | . 1 . . . 1 Swarmer 12 | . 6 . . 2 4 Grunt 11 | . 4 6 . 1 . Brawler 1 | . . . . 1 . Sentry 3 | . . . . . 3 Best Kill Streak 8 | . 4 4 . 3 8 Combat Bots Only 7 | . 3 3 . 2 7 Max Kills in Single Turn 2 | . 1 2 . 2 1 Gunslinging . | . . . . . . Exploded 2 | . . 2 . 2 . Melee . | . . . . . . Uniques/NPCs Destroyed . | . . . . . . Combat | -11 -10 -10 -10 -9 -8 -------- Run | Yrd Mat Min Exi Min Mat Hostile Shots Fired 213 | . 54 43 . 4 112 Missed 60 | . 19 16 . 2 23 Damage Taken 2002 | . 396 390 . 63 1153 Core 443 | . 92 124 . 5 222 Absorbed by Shields . | . . . . . . Redirected to Shielding 31 | . . . . . 31 Core Remaining (%) 55 | 100 . . . 11 . Volleys Fired 117 | . 28 47 . 12 30 Largest 2 | . 2 2 . 2 2 Hottest 88 | . 80 70 . 43 88 Shots Fired 183 | . 54 67 . 14 48 Gun 58 | . 53 . . 5 . Cannon 119 | . . 64 . 7 48 Launcher 6 | . 1 3 . 2 . Special . | . . . . . . Kinetic 124 | . . 64 . 12 48 Thermal 53 | . 53 . . . . Explosive 6 | . 1 3 . 2 . Electromagnetic . | . . . . . . Robot Hit Streak 15 | . 5 15 . 3 7 Robot Miss Streak 4 | . 4 4 . 2 2 Penetration Max . | . . . . . . Secondary Targets . | . . . . . . Shots Hit Robots 109 | . 33 40 . 8 28 Core Hits 55 | . 17 20 . 9 9 Critical Kills . | . . . . . . Critical Parts Destroyed . | . . . . . . Critical Strikes 4 | . . 1 . 1 2 Blast 4 | . . 1 . 1 2 Melee Attacks 23 | . 20 . . . 3 Impact 23 | . 20 . . . 3 Slashing . | . . . . . . Piercing . | . . . . . . Sneak Attacks 1 | . 1 . . . . Combat Hostiles . | . . . . . . Follow-up Attacks . | . . . . . . Damage Inflicted 2371 | . 476 901 . 301 693 Guns 402 | . 363 . . 39 . Cannons 1430 | . . 673 . 64 693 Explosions 423 | . 39 227 . 157 . Melee 72 | . 72 . . . . Ramming 44 | . 2 1 . 41 . Kinetic 1469 | . . 673 . 103 693 Thermal 363 | . 363 . . . . Explosive 423 | . 39 227 . 157 . Electromagnetic . | . . . . . . Impact 72 | . 72 . . . . Slashing . | . . . . . . Piercing . | . . . . . . Highest Corruption 1 | . 1 1 1 1 . Average Corruption 1 | . 1 1 1 1 . Corruption Purged . | . . . . . . Corruption Blocked . | . . . . . . Effects 21 | . 3 10 4 4 . Message Errors 8 | . 2 5 1 . . Matter Fused 1 | . . . 1 . . Heat Flow Errors 4 | . . 1 2 1 . Data Loss (minor) 4 | . 1 . . 3 . Data Loss (major) 1 | . . 1 . . . Misfires 1 | . . 1 . . . Alerts 2 | . . 2 . . . Overload Shots . | . . . . . . Overflow Damage 142 | . 42 28 . 36 36 Projectiles 40 | . . 4 . . 36 Explosions 49 | . . 24 . 25 . Melee 53 | . 42 . . 11 . Knockbacks 23 | . 1 12 . 1 9 Impact 1 | . 1 . . . . Kinetic 20 | . . 10 . 1 9 Secondary 2 | . . 2 . . . Self-Inflicted Damage 45 | . . . . 45 . Shots 2 | . . . . 2 . Rammed 3 | . 1 1 . 1 . Targets Rammed 3 | . 1 1 . 1 . Kicked . | . . . . . . Crushed . | . . . . . . Highest Temperature 407 | . 261 243 148 215 407 Average Temperature 110 | . 89 27 64 116 217 Received Heat Transfer 795 | . 165 225 . . 405 Effects 9 | . . . . . 9 Shutdowns 2 | . . . . . 2 Energy Bleed 1 | . . . . . 1 Interference 2 | . . . . . 2 Matter Decay 3 | . . . . . 3 Damage (minor) 1 | . . . . . 1 Siege Activations . | . . . . . . Robots Corrupted . | . . . . . . Combat Hostiles . | . . . . . . Parts Fried 3 | . 1 . . 2 . Impact Corruptions 4 | . 3 . . 1 . Robots Melted . | . . . . . . Combat Hostiles . | . . . . . . Parts Melted 2 | . 2 . . . . Heat Transferred 800 | . 800 . . . . Parts Sabotaged . | . . . . . . Parts Stolen . | . . . . . . Parts Stripped . | . . . . . . Power Chain Reactions . | . . . . . . Alert | -11 -10 -10 -10 -9 -8 ------- Run | Yrd Mat Min Exi Min Mat Peak Influence 217 | . 217 169 . 193 168 Initial 10 | . . 10 . . . Average 66 | . 83 60 . 63 62 Maximum Alert Level 1 | . 1 . . . . Low Security (%) 95 | 100 86 100 . 100 100 Level 1 4 | . 13 . . . . Level 2 . | . . . . . . Level 3 . | . . . . . . Level 4 . | . . . . . . Level 5 . | . . . . . . High Security . | . . . . . . Max Security . | . . . . . . Squads Dispatched 5 | . 1 . . . 4 Investigation 1 | . . . . . 1 Extermination . | . . . . . . Reinforcement 2 | . 1 . . . 1 Assault . | . . . . . . Garrison 2 | . . . . . 2 Intercept . | . . . . . . Searches Triggered . | . . . . . . Construction Impeded . | . . . . . . Haulers Reinforced . | . . . . . . Active Scanning Responses . | . . . . . . Cargo Convoy Interrupts . | . . . . . . Stealth | -11 -10 -10 -10 -9 -8 --------- Run | Yrd Mat Min Exi Min Mat Distress Signals 3 | . 1 . . . 2 Communications Jammed . | . . . . . . Distress Signals . | . . . . . . Times Spotted 44 | . 17 6 . 8 13 Peak Tracking Total 7 | . 4 2 . 3 7 Tactical Retreats 1 | . 1 . . . . Traps | -11 -10 -10 -10 -9 -8 ------- Run | Yrd Mat Min Exi Min Mat Traps Triggered 1 | . 1 . . . . Indirectly . | . . . . . . Trap Hack Attempts . | . . . . . . Triggered . | . . . . . . Disarmed . | . . . . . . Reprogrammed . | . . . . . . Reused . | . . . . . . Traps Extracted . | . . . . . . Installed . | . . . . . . Triggered . | . . . . . . Machines | -11 -10 -10 -10 -9 -8 ---------- Run | Yrd Mat Min Exi Min Mat Machines Disabled 2 | . . 1 . . 1 Max in Single Turn 1 | . . 1 . . 1 Machines Repaired . | . . . . . . Machines Dismantled . | . . . . . . Machines Sabotaged . | . . . . . . Overloaded Fab Kills . | . . . . . . Hacking | -11 -10 -10 -10 -9 -8 --------- Run | Yrd Mat Min Exi Min Mat Machines Accessed 5 | . 3 . . . 2 Terminals 3 | . 2 . . . 1 Fabricators . | . . . . . . Repair Stations . | . . . . . . Recycling Units 2 | . 1 . . . 1 Scanalyzers . | . . . . . . Garrison Access . | . . . . . . Total Hacks 14 | . 9 . . . 5 Successful 8 | . 5 . . . 3 Failed 6 | . 4 . . . 2 Catastrophic . | . . . . . . Database Lockouts . | . . . . . . Manual 15 | . 9 . 1 . 5 Terminals 12 | . 8 . . . 4 Fabricators . | . . . . . . Repair Stations . | . . . . . . Recycling Units 2 | . 1 . . . 1 Scanalyzers . | . . . . . . Garrison Access . | . . . . . . Terminal Hacks 2 | . 1 . . . 1 Terminal Index 1 | . 1 . . . . Alert Level 1 | . . . . . 1 Fabricator Hacks . | . . . . . . Repair Station Hacks . | . . . . . . Recycling Unit Hacks . | . . . . . . Scanalyzer . | . . . . . . Garrison Access Hacks . | . . . . . . Unauthorized Hacks 6 | . 4 . . . 2 Terminals 4 | . 3 . . . 1 Botnet 3 | . 2 . . . 1 Operators 1 | . 1 . . . . Fabricators . | . . . . . . Repair Stations . | . . . . . . Recycling Units 2 | . 1 . . . 1 Reject 2 | . 1 . . . 1 Scanalyzers . | . . . . . . Garrison Access . | . . . . . . Data Cores Recovered . | . . . . . . Used . | . . . . . . Hacking Detections 4 | . 3 . . . 1 Full Trace Events . | . . . . . . Feedback Events . | . . . . . . Feedback Blocked . | . . . . . . Robot Schematics Acquired . | . . . . . . Robots Built . | . . . . . . Authchips . | . . . . . . Time . | . . . . . . Total Robot Build Rating . | . . . . . . Part Schematics Acquired . | . . . . . . Parts Built . | . . . . . . Authchips . | . . . . . . Time . | . . . . . . Total Part Build Rating . | . . . . . . Parts Repaired . | . . . . . . Time . | . . . . . . Parts Recycled . | . . . . . . Recycled Matter . | . . . . . . Retrieved Matter . | . . . . . . Retrieved Components . | . . . . . . Parts Scanalyzed . | . . . . . . Part Schematics Acquired . | . . . . . . Parts Damaged . | . . . . . . Bothacking | -11 -10 -10 -10 -9 -8 ------------ Run | Yrd Mat Min Exi Min Mat Used RIF Installer . | . . . . . . Robots Hacked . | . . . . . . Non-combat . | . . . . . . Combat . | . . . . . . Robot Hacks Applied . | . . . . . . Relay Couplers Released . | . . . . . . Fabnet Peak Effective % . | . . . . . . Robots Rewired . | . . . . . . Allies Hacked . | . . . . . . Hacks Repelled . | . . . . . . Allies | -11 -10 -10 -10 -9 -8 -------- Run | Yrd Mat Min Exi Min Mat Total Allies 6 | . . 3 . 3 . Largest Group 3 | . . 3 3 3 1 Highest-Rated Group 76 | . . 76 76 40 8 Highest-Rated Ally 31 | . . 31 31 16 8 Total Orders . | . . . . . . Ally Attacks 25 | . . 9 . 15 1 Total Damage 270 | . . 83 . 187 . Kills 4 | . . 1 . 3 . Allies Corrupted . | . . . . . . Allies Melted . | . . . . . . Intel | -11 -10 -10 -10 -9 -8 ------- Run | Yrd Mat Min Exi Min Mat Robot Analysis Total . | . . . . . . Derelict Logs Recovered 3 | . . 2 . 1 . Drone Launches . | . . . . . . Drone Recoveries . | . . . . . . Exploration | -11 -10 -10 -10 -9 -8 ------------- Run | Yrd Mat Min Exi Min Mat Turns Passed 3307 | 88 870 1205 405 408 331 Spaces Moved 1621 | 49 420 572 245 207 128 Core 3 | 2 . . . . 1 Treads 573 | 47 420 106 . . . Legs . | . . . . . . Wheels 1045 | . . 466 245 207 127 Hover . | . . . . . . Flight . | . . . . . . Fastest Speed 50 | 50 160 160 100 160 125 Average Speed 167 | 155 160 182 157 160 163 Slowest Speed 2600 | 160 160 400 160 160 2600 Overloaded Moves . | . . . . . . Propulsion Burnouts . | . . . . . . Robots Hopped . | . . . . . . Cave-ins Triggered . | . . . . . . Exploration Rate (%) 45 | 5 48 96 62 47 14 Regions Visited 5 Branch Regions 3 Pre-discovered Areas 2 | . . 1 . 1 . Known Exits Taken . | . . . . . . Unknown Exits Taken 5 | 1 1 1 1 1 . Scrap Searched 2 | . . 1 . 1 . Spaces Dug 13 | . 10 . . . 3 Terrain Destroyed 82 | . 22 28 . 21 11 Melee 13 | . 10 . . . 3 Projectile 8 | . . . . . 8 AOE 61 | . 12 28 . 21 . Terrain Rammed . | . . . . . . Walls Destroyed . | . . . . . . Machines Disabled . | . . . . . . Actions | -11 -10 -10 -10 -9 -8 --------- Run | Yrd Mat Min Exi Min Mat Total 1981 | 58 528 667 268 266 194 Wait 96 | . 48 14 2 24 8 Move 1616 | 48 419 571 244 206 128 Hop . | . . . . . . Pick Up 49 | 4 6 10 8 13 8 Fast Attach 11 | 6 . 2 3 . . Attach 14 | . 2 2 1 2 7 Detach 3 | . . 1 2 . . Swap 24 | . 3 7 . 7 7 Drop 25 | . 1 12 8 1 3 Fire 117 | . 28 47 . 12 30 Melee 23 | . 20 . . . 3 Ram 1 | . . . . 1 . Kick . | . . . . . . Crush 2 | . 1 1 . . . Escape Stasis . | . . . . . . Rewire . | . . . . . . Trap . | . . . . . . Miscellaneous . | . . . . . . Route ------- -11/Scrapyard -10/Materials (discovered 2 exits: [*Mat] / [*Min]) -10/Mines (discovered 4 exits: [*Mat x2] / *Exi / [*Sub]) -10/Exiles -9/Mines -8/Materials (discovered 1 exit: Fac) History --------- Turn | Location | Event 15 | -11/Scrapyard | Discovered new exit (range 16) 89 | -11/Scrapyard | Entered Materials 318 | -10/Materials | Build established: Mutant 488 | -10/Materials | Discovered new exit (range 14) 587 | -10/Materials | Discovered new exit (range 15) 959 | -10/Materials | Entered Mines 989 | -10/Mines | Core integrity fell below 50% 1042 | -10/Mines | Escorted by a lone wolf Derelict 1459 | -10/Mines | Build established: Hauler-Mutant 1801 | -10/Mines | Learned location of Storage (-7) 1806 | -10/Mines | Discovered new exit (range 6) 1992 | -10/Mines | Learned location of 1 exit from Materials 2010 | -10/Mines | Discovered new exit (range 8) 2021 | -10/Mines | Core integrity fell below 20% 2104 | -10/Mines | Discovered new exit (range 6) 2142 | -10/Mines | Deemed a non-threat by the Exiles lab entrance 2144 | -10/Mines | Discovered new exit (range 5) 2164 | -10/Mines | Entered Exiles 2164 | -10/Exiles | Accompanied by 3 allies 2194 | -10/Exiles | Led the pair of lost Derelicts to a safe place 2204 | -10/Exiles | Met 8R-AWN 2233 | -10/Exiles | Met EX-HEX 2284 | -10/Exiles | Met EX-BIN 2303 | -10/Exiles | Aligned with FarCom system 2305 | -10/Exiles | Given EX-Vault access code 2343 | -10/Exiles | Opened EX-Vault 2356 | -10/Exiles | Found Prototype Device 2356 | -10/Exiles | Identified Cloak of Protection 2389 | -10/Exiles | Found Prototype Energy Cannon 2389 | -10/Exiles | Identified Latent Energy Streamer 2392 | -10/Exiles | Found Prototype Energy Cannon 2392 | -10/Exiles | Identified Gui. Plasma Cannon 2446 | -10/Exiles | Warned to stay clear of 0b10 Research branches 2495 | -10/Exiles | Met EX-DEC 2551 | -10/Exiles | Discovered new exit (range 14) 2569 | -10/Exiles | Left Exiles lab with Cloak of Protection 2569 | -10/Exiles | Entered Mines 2585 | -9/Mines | Assisted by bots powering up and referring to "LRC-V3" 2684 | -9/Mines | Joined a pair of Derelicts in attacking an 0b10 outpost 2965 | -9/Mines | Discovered new exit (range 8) 2977 | -9/Mines | Entered Materials 2977 | -8/Materials | Accompanied by 1 ally 2977 | -8/Materials | Evolved 4 slots: Propulsion x2, Utility x2 2978 | -8/Materials | Identified exit to Factory 3170 | -8/Materials | Garrison activated, responded to threat 3240 | -8/Materials | Lost 6 parts (4n2u) 3243 | -8/Materials | Destroyed 7 combat bots 3308 | -8/Materials | Self-destructed Last Messages --------------- Acquired 15 matter. G-47 Trooper knocked back. Acquired data core, dynamic key expired. Wheel destroyed. Connecting with Terminal... >>Trojan(Botnet) Trojan loaded successfully. Testing... Terminal linked with 0 systems. Awaiting botnet instructions. >>Alert(Check) Current Alert Level: Low Security Acquired 1 matter. K-01 Serf collects debris. K-01 Serf destroyed. U-05 Engineer builds a Wall. Assault Cannon destroyed. K-01 Serf collects debris. Rnf. Ion Engine destroyed. K-01 Serf collects debris. Map ----- +----------------------------------------------------+ | ?????????????????????????????????????????????????? | | ?????????????????????##########??????????????????? | | ?????????????????????# #???###########????? | | ?????????????????????# """ #???# #????? | | ?????????????????????# """ ##### #????? | | ?????????????????????# """ # # ! """ #????? | | ?????????????????????# # # [ """ #????? | | ?????????????????????# "" # # """ #????? | | ?????????????????????# "Y + + #????? | | ?????????????????????# "" # # #????? | | ?????????????????????# # # #????? | | ?????????????????????########## ###########????? | | ??????????????????????????????# # #???????? | | ??????????????????????????????# # """#???????? | | ??????????????????#######?????# # """#???????? | | ??????????????????# ####### + """#???????? | | ??????????????????# # #???????? | | ??????????????????# # #???????? | | ??????????????????# ########???????? | | ??????????????????# ##############???????????? | | ??????????########## ##?????#########??????????? | | ??????????# # #??????# #??????????? | | ??????????# """ # ######?# #??????????? | | ??????????# """ + ##"T"### #??????????? | | ??????????# """ # =%* # ][[ #??????????? | | ??????????# # = @ g/ ]]] #??????????? | | ??????????# """ ?# #%%]]] #??????????? | | ??????????# """ ] ?# Y"""" # #??????????? | | ????????????""" ??# """" # = * #??????????? | | ??????????? ]??# ""%% # *!=[!#??????????? | | ???????????#####???# ###!#+########?????? | | ???????????????????# %!%=%= | | ???????????????????# """" [%%%! | | ???????????????????# """" k*%%% | | ???????????????????# """" #################### | | ???????????????????# #??????????????????? | | ???????????????????# #??????????????????? | | ???????????????????? #??????????????????? | | ???????????????????? #??????????????????? | | ???????????????????????? ???????????????????? | | ????????????????????????? !! ???????????????????? | | ????????????????????????? ! ???????????????????? | | ?????????????????????????? ???????????????????? | | ?????????????????????????????????????????????????? | | ?????????????????????????????????????????????????? | | ?????????????????????????????????????????????????? | | ?????????????????????????????????????????????????? | | ?????????????????????????????????????????????????? | | ?????????????????????????????????????????????????? | | ?????????????????????????????????????????????????? | +----------------------------------------------------+ Best States ------------- Heat Dissipation 39 Energy Generation 14 Energy Capacity 265 Matter Stores 300 Matter Capacity 300 Sight Range 16 Terrain Scan Density 10 Cloak Strength 5 Armor Coverage 225 Utility Shielding 33 Evasion (%) 40 Targeting Accuracy 8 Recoil Reduction 2 Item Schematics ----------------- None Robot Schematics ------------------ None Fabricated ------------ Nothing Alien Tech Used ----------------- None Achievements -------------- Maybe Next Time I'll Detach My Launcher Challenges ------------ None Game ------ Seed AntigravLauncherReplicator Manual? 0 Play Time 00:30:23 Cumulative 22.0 hours Start 2024.04.11 @ 18:36:52 End 2024.04.11 @ 19:17:46 Sessions 1 Manual Loads 0 Difficulty Rogue Special Mode None Game No. 43 Rogue 43 Adventurer 0 Explorer 0 Win Type - Total 0 Types 0/0/0/0/0/0/0/0/0 Lore% 18 Gallery% 24 Achievement% 25 Wizard Run 0 Options --------- Layout 1 ASCII 0 Keyboard 0 Movement Numpad Keybinds 0 Fullscreen 1 Font 32/SmallcapsGlow Map View 50x35 Zoom Use 0% Tactical HUD 0 Map Filters NONE Filters NONE Steam 1 RUN: 8e496bdc-ff26-4bfa-9082-c95b5fefe5c2